lending/lending_fUSD_20240703
["ID","MTS","AMOUNT","RATE_DAILY","PERIOD"]
[330989183,1719989442067,-612.09,0.00021917,4]
[330989184,1719989442076,-612.09,0.00021917,4]
[330989185,1719989442086,-612.09,0.00021917,4]
[330989186,1719989442095,-612.09,0.00021917,4]
[330989187,1719989442104,-612.09,0.00021917,4]
[330989188,1719989442115,-612.09,0.00021917,4]
[330989189,1719989442129,-612.09,0.00021917,4]
[330989190,1719989442138,-612.09,0.00021917,4]
[330989191,1719989442148,-612.09,0.00021917,4]
[330989192,1719989442157,-612.09,0.00021917,4]
[330989193,1719989442166,-612.09,0.00021917,4]
[330989194,1719989442176,-612.09,0.00021917,4]
[330989195,1719989442185,-612.09,0.00021917,4]
[330989196,1719989442195,-612.09,0.00021917,4]
[330989197,1719989442207,-612.09,0.00021917,4]
[330989198,1719989442216,-612.11015334,0.00021917,4]
[330989199,1719989442226,-1046.4,0.00021917,4]
[330989200,1719989442236,-1046.4,0.00021917,4]
[330989201,1719989442247,-688.94611829,0.00021917,4]
[330989209,1719989443966,-357.45388171,0.00021917,4]
[330989210,1719989443978,-143.12439454,0.00021917,4]
[330989299,1719990631743,-159.85756079,0.0001716,2]
[330989301,1719990631754,-443.52572202,0.0001726,2]
[330989315,1719990632020,-56.47427798,0.0001726,2]
[330989316,1719990632029,-500.0,0.0001726,2]
[330989317,1719990632038,-150.0,0.00018255,2]
[330989318,1719990632047,-5142.58869413,0.00018256,2]
[330989319,1719990632057,-5314.0001,0.00018256,2]
[330989320,1719990632068,-2010.11970587,0.00018256,2]
[330989321,1719990632077,-332.15,0.00018309,2]
[330989322,1719990632087,-500.0,0.00018356,2]
[330989323,1719990632096,-500.0,0.00018356,2]
[330989324,1719990632106,-650.99337379,0.00018835,2]
[330989325,1719990632116,-227.12084219,0.00018899,2]
[330989326,1719990632127,-221.7900275,0.00018899,2]
[330989327,1719990632138,-463.02049998,0.00018919,2]
[330989328,1719990632148,-459.07,0.00018999,2]
[330989329,1719990632159,-499.99,0.00018999,2]
[330989330,1719990632169,-155.0,0.00018999,2]
[330989331,1719990632178,-200.0,0.00019452,2]
[330989332,1719990632188,-500.0,0.00019452,2]
[330989333,1719990632199,-2132.21,0.00019725,2]
[330989334,1719990632210,-264.40040348,0.00019725,2]
[330989335,1719990632220,-298.45180818,0.00019874,4]
[330989336,1719990632230,-153.96641334,0.00019874,4]
[330989337,1719990632241,-10065.34513921,0.00019997,2]
[330989338,1719990632251,-321.88,0.00020046,2]
[330989339,1719990632261,-250.0,0.00020185,2]
[330989340,1719990632271,-220.32686422,0.00020267,2]
[330989341,1719990632281,-250.0,0.00020272,2]
[330989342,1719990632292,-1000.0,0.00020294,2]
[330989343,1719990632302,-500.0,0.00020548,2]
[330989344,1719990632311,-332.15,0.00020573,2]
[330989345,1719990632320,-308.51378567,0.00020659,2]
[330989346,1719990632329,-150.38007136,0.00020685,2]
[330989347,1719990632339,-167.00106136,0.00020692,2]
[330989348,1719990632349,-152.72324756,0.00020724,2]
[330989349,1719990632358,-152.67989748,0.00020778,2]
[330989350,1719990632368,-155.4530586,0.00020796,2]
[330989351,1719990632378,-166.71857966,0.00020816,2]
[330989352,1719990632388,-308.51378567,0.00020825,2]
[330989353,1719990632399,-154.07767821,0.0002083,2]
[330989354,1719990632409,-151.47087593,0.00020852,2]
[330989355,1719990632419,-150.38007136,0.00020914,2]
[330989356,1719990632429,-152.67989748,0.00020967,2]
[330989357,1719990632443,-225.25950071,0.00021,2]
[330989358,1719990632453,-203.233329,0.00021,2]
[330989359,1719990632463,-308.51378567,0.00021019,2]
[330989360,1719990632472,-397.0,0.00021037,2]
[330989361,1719990632482,-154.07767821,0.00021074,2]
[330989362,1719990632491,-150.38007136,0.00021076,2]
[330989363,1719990632500,-150.38007136,0.00021086,2]
[330989364,1719990632510,-155.4530586,0.00021128,2]
[330989365,1719990632522,-170.817468,0.0002113,2]
[330989366,1719990632531,-308.51378567,0.00021138,2]
[330989367,1719990632540,-745.34,0.00021151,2]
[330989368,1719990632549,-152.16731432,0.00021158,2]
[330989369,1719990632559,-155.4530586,0.00021169,2]
[330989370,1719990632568,-800.0,0.00021178,2]
[330989371,1719990632577,-800.0,0.00021178,2]
[330989372,1719990632586,-154.27660404,0.00021191,2]
[330989373,1719990632595,-800.0,0.00021205,2]
[330989374,1719990632604,-800.0,0.00021205,2]
[330989375,1719990632614,-800.0,0.00021233,2]
[330989376,1719990632623,-800.0,0.00021233,2]
[330989377,1719990632632,-152.67989748,0.00021236,2]
[330989378,1719990632641,-153.20664271,0.00021249,2]
[330989379,1719990632650,-800.0,0.0002126,2]
[330989380,1719990632660,-800.0,0.0002126,2]
[330989381,1719990632670,-155.09708435,0.00021263,2]
[330989382,1719990632680,-150.38007136,0.00021267,2]
[330989383,1719990632689,-308.51378567,0.00021269,2]
[330989384,1719990632698,-152.2770855,0.0002132,2]
[330989385,1719990632708,-155.09708435,0.00021339,2]
[330989386,1719990632717,-800.0,0.00021342,2]
[330989387,1719990632726,-800.0,0.00021342,2]
[330989388,1719990632735,-800.0,0.00021342,2]
[330989389,1719990632745,-155.4530586,0.00021367,2]
[330989390,1719990632755,-800.0,0.0002137,2]
[330989391,1719990632764,-166.66666668,0.0002137,2]
[330989392,1719990632773,-308.51378567,0.00021375,2]
[330989393,1719990632783,-154.27660404,0.00021377,2]
[330989394,1719990632792,-167.00106137,0.00021415,2]
[330989395,1719990632801,-150.38007136,0.00021423,2]
[330989396,1719990632810,-150.38007136,0.00021478,2]
[330989397,1719990632819,-1005.61543707,0.00021499,2]
[330989398,1719990632828,-73910.13565224,0.000215,2]
[330989399,1719990632837,-155.09708435,0.00021501,2]
[330989400,1719990632846,-159.58343704,0.00021505,2]
[330989401,1719990632856,-153.20664271,0.00021508,2]
[330989402,1719990632865,-152.72324756,0.00021526,2]
[330989403,1719990632875,-308.51378567,0.00021529,2]
[330989404,1719990632884,-150.38007136,0.00021563,2]
[330989405,1719990632894,-152.27708551,0.00021588,2]
[330989406,1719990632903,-2188.0,0.000216,2]
[330989407,1719990632913,-150.04,0.00021644,2]
[330989408,1719990632924,-238.16,0.00021644,2]
[330989409,1719990632936,-500.0,0.00021644,2]
[330989410,1719990632947,-154.07767821,0.00021652,2]
[330989411,1719990632957,-155.4530586,0.00021656,2]
[330989412,1719990632967,-308.51378567,0.00021675,2]
[330989413,1719990632976,-308.51378567,0.00021691,2]
[330989414,1719990632986,-153.20664271,0.00021692,2]
[330989415,1719990632995,-263.92191593,0.00021702,2]
[330989416,1719990633005,-2500.0,0.00021758,2]
[330989417,1719990633015,-154.27660404,0.00021762,2]
[330989418,1719990633024,-263.92191584,0.0002178,2]
[330989419,1719990633033,-332.68046199,0.00021804,2]
[330989420,1719990633043,-446.9569,0.00021817,2]
[330989421,1719990633052,-652.62158447,0.00021817,2]
[330989422,1719990633061,-160.20384157,0.00021817,2]
[330989423,1719990633070,-263.92191584,0.00021857,2]
[330989424,1719990633080,-3172.88245229,0.00021865,2]
[330989425,1719990633088,-652.62158443,0.0002187,2]
[330989426,1719990633097,-582.0,0.00021871,2]
[330989427,1719990633106,-1197.79519522,0.00021884,2]
[330989428,1719990633119,-78.23831236,0.00021884,2]
[330989429,1719990633128,-500.0,0.00021885,2]
[330989430,1719990633344,-200.0,0.00021885,2]
[330989431,1719990633356,-1977.88146339,0.00021888,2]
[330989432,1719990633369,-41.07464614,0.00021888,2]
[330989433,1719990633380,-6209.43086826,0.0002189,2]
[330989434,1719990633392,-278.60878409,0.0002189,2]
[330989435,1719990633405,-1115.8023317,0.0002189,2]
[330989436,1719990633418,-378.73,0.0002189,2]
[330989437,1719990633429,-289.3455407,0.0002189,2]
[330989438,1719990633446,-2333.50701761,0.0002189,2]
[330989439,1719990633460,-2207.40403079,0.0002189,2]
[330989440,1719990633472,-1325.14524,0.0002189,2]
[330989441,1719990633485,-3499.02376926,0.0002189,2]
[330989442,1719990633496,-1291.53327864,0.0002189,2]
[330989443,1719990633507,-49675.5478722,0.0002189,2]
[330989449,1719990637824,-1250.0,0.00021,2]
[330989450,1719990637840,-15642.23064129,0.0002189,2]
[330989451,1719990637856,-11823.31608176,0.0002189,2]
[330989452,1719990637866,-800.42844579,0.00021897,2]
[330989454,1719990637879,-4536.77296845,0.00021897,2]
[330989455,1719990637889,-327.27195084,0.00021899,2]
[330989456,1719990637900,-250000.0,0.000219,2]
[330989458,1719990637910,-370.0,0.000219,4]
[330989459,1719990637920,-2668.60070712,0.00021907,2]
[330989460,1719990637931,-184.43129771,0.00021907,2]
[330989461,1719990637943,-150.07,0.00021907,2]
[330989462,1719990637954,-150.07,0.00021907,2]
[330989463,1719990637964,-150.07,0.00021907,2]
[330989464,1719990637975,-150.07,0.00021907,2]
[330989465,1719990637985,-150.07,0.00021907,2]
[330989466,1719990637995,-150.07,0.00021907,2]
[330989467,1719990638005,-153.20664271,0.00021908,2]
[330989468,1719990638015,-154.82210955,0.00021914,2]
[330989469,1719990638025,-1005.3673,0.00021916,2]
[330989470,1719990638035,-500.0,0.00021917,4]
[330989471,1719990638045,-500.0,0.00021917,4]
[330989472,1719990638056,-500.0,0.00021917,4]
[330989473,1719990638066,-500.0,0.00021917,4]
[330989474,1719990638076,-500.0,0.00021917,4]
[330989475,1719990638086,-500.0,0.00021917,4]
[330989476,1719990638096,-500.0,0.00021917,4]
[330989477,1719990638106,-500.0,0.00021917,4]
[330989478,1719990638116,-500.0,0.00021917,4]
[330989479,1719990638126,-500.0,0.00021917,4]
[330989480,1719990638136,-500.0,0.00021917,4]
[330989481,1719990638146,-500.0,0.00021917,4]
[330989482,1719990638156,-500.0,0.00021917,4]
[330989483,1719990638167,-500.0,0.00021917,4]
[330989484,1719990638177,-500.0,0.00021917,4]
[330989485,1719990638187,-500.0,0.00021917,4]
[330989486,1719990638198,-500.0,0.00021917,4]
[330989487,1719990638208,-500.0,0.00021917,4]
[330989488,1719990638217,-500.0,0.00021917,4]
[330989489,1719990638227,-500.0,0.00021917,4]
[330989490,1719990638237,-500.0,0.00021917,4]
[330989491,1719990638247,-500.0,0.00021917,4]
[330989492,1719990638256,-546.44,0.00021917,4]
[330989493,1719990638266,-546.44,0.00021917,4]
[330989494,1719990638277,-546.44,0.00021917,4]
[330989495,1719990638287,-546.44,0.00021917,4]
[330989496,1719990638297,-546.44,0.00021917,4]
[330989497,1719990638307,-546.44,0.00021917,4]
[330989498,1719990638317,-546.44,0.00021917,4]
[330989499,1719990638327,-546.44,0.00021917,4]
[330989500,1719990638337,-546.44,0.00021917,4]
[330989501,1719990638347,-546.44,0.00021917,4]
[330989502,1719990638357,-546.44,0.00021917,4]
[330989503,1719990638369,-19825.32715187,0.00021917,2]
[330989504,1719990638379,-169.74477464,0.00021917,2]
[330989505,1719990638390,-155.0,0.00021917,2]
[330989506,1719990638400,-550.6201206,0.00021917,2]
[330989507,1719990638409,-500.0,0.00021917,4]
[330989508,1719990638420,-500.0,0.00021917,4]
[330989509,1719990638434,-500.0,0.00021917,4]
[330989510,1719990638452,-500.0,0.00021917,4]
[330989511,1719990638462,-581.33393112,0.00021917,2]
[330989512,1719990638472,-500.0,0.00021917,4]
[330989513,1719990638484,-500.0,0.00021917,4]
[330989514,1719990638494,-500.0,0.00021917,4]
[330989515,1719990638504,-500.0,0.00021917,4]
[330989516,1719990638515,-500.0,0.00021917,4]
[330989517,1719990638526,-24641.18328434,0.00021917,2]
[330989518,1719990638536,-500.0,0.00021917,4]
[330989519,1719990638547,-500.0,0.00021917,4]
[330989520,1719990638557,-7057.14357505,0.00021917,2]
[330989521,1719990638576,-2726.77650109,0.00021917,2]
[330989522,1719990638589,-657.76259654,0.00021917,2]
[330989523,1719990638622,-2674.86820285,0.00021917,2]
[330989524,1719990638634,-2109.83826179,0.00021917,2]
[330989525,1719990638646,-1777.0,0.00021917,2]
[330989526,1719990638659,-3715.37155532,0.00021917,2]
[330989527,1719990638671,-3191.41997605,0.00021917,2]
[330989528,1719990638687,-605.49972795,0.00021917,2]
[330989529,1719990638699,-384.2290936,0.00021917,2]
[330989530,1719990638711,-255.53745705,0.00021917,2]
[330989531,1719990638727,-312.76418528,0.00021917,2]
[330989532,1719990638740,-4207.32988912,0.00021917,2]
[330989533,1719990638753,-434.55000021,0.00021917,2]
[330989534,1719990638765,-605.30007405,0.00021917,2]
[330989535,1719990639012,-528.16275151,0.00021917,2]
[330989537,1719990640206,-1068.79505037,0.00021479,2]
[330989538,1719990640216,-35.53841118,0.00021917,2]
[330989563,1719990643097,-352.29,0.00021862,2]
[330989564,1719990643110,-1719.33925659,0.00021862,2]
[330989565,1719990643121,-690.0,0.00021862,2]
[330989566,1719990643134,-328.04999985,0.00021862,2]
[330989567,1719990643146,-83.20319585,0.00021862,2]
[330989568,1719990643155,-793.76913102,0.00021917,2]
[330989569,1719990643166,-2266.95794302,0.00021917,2]
[330989570,1719990643403,-931.59745099,0.00021917,2]
[330989593,1719990646193,-775.03337913,0.00021917,2]
[330989605,1719991479832,-500.0,0.0001726,2]
[330989606,1719991531632,500.0,0.0001726,2]
[330989611,1719991781215,-4000000.0,0.000225,120]
[330989612,1719991785798,-4000000.0,0.000225,120]
[330989613,1719991790752,-8019433.25132842,0.000225,120]
[330989617,1719991810319,1047.52483057,0.00017999,2]
[330989626,1719991832812,-500.0,0.00018356,2]
[330989629,1719991832823,-261.58122686,0.00018899,2]
[330989630,1719991832833,-71.66781694,0.00018999,2]
[330989637,1719991832886,-155.45302525,0.00018999,2]
[330989639,1719991832897,-1250.0,0.00019,2]
[330989640,1719991832910,-500.0,0.00019452,2]
[330989641,1719991832920,-499.99,0.00019452,2]
[330989642,1719991832928,-150.0,0.00019564,2]
[330989643,1719991832938,-156.69839307,0.00019565,2]
[330989644,1719991832948,-37166.34408161,0.00019565,2]
[330989645,1719991832957,-1415.52,0.00019565,2]
[330989646,1719991832966,-570.80931132,0.00019626,3]
[330989647,1719991832976,-3868.99,0.00019726,2]
[330989648,1719991832985,-570.80931132,0.0001989,3]
[330989649,1719991832995,-250.0,0.00020126,2]
[330989650,1719991833004,-250.0,0.00020148,2]
[330989651,1719991833013,-496.82,0.00020236,2]
[330989652,1719991833023,-280.84,0.00020243,2]
[330989653,1719991833032,-1000.0,0.00020245,2]
[330989654,1719991833041,-284.98,0.00020255,2]
[330989655,1719991833050,-3551.28890012,0.00020311,2]
[330989656,1719991833060,-217.98841663,0.00020548,2]
[330989657,1719991833069,-215.95964997,0.00020671,2]
[330989658,1719991833089,-215.95964997,0.00020697,2]
[330989659,1719991833099,-155.4530586,0.00020697,2]
[330989660,1719991833109,-155.09708436,0.00020753,2]
[330989661,1719991833119,-155.4530586,0.0002078,2]
[330989662,1719991833129,-215.95964997,0.00020795,2]
[330989663,1719991833138,-152.16731432,0.00020816,2]
[330989664,1719991833148,-150.65467709,0.00020822,2]
[330989665,1719991833159,-152.67989748,0.00020823,2]
[330989666,1719991833169,-215.95964997,0.0002085,2]
[330989667,1719991833179,-215.95964997,0.00020865,2]
[330989668,1719991833190,-215.95964997,0.00020866,2]
[330989669,1719991833199,-155.4530586,0.00020928,2]
[330989670,1719991833210,-154.07767821,0.00020942,2]
[330989671,1719991833222,-225.25950071,0.00021,2]
[330989672,1719991833234,-1300.0,0.00021,2]
[330989673,1719991833243,-203.233329,0.00021,2]
[330989674,1719991833254,-153.20664271,0.00021028,2]
[330989675,1719991833263,-155.09708436,0.00021049,2]
[330989676,1719991833274,-174.779573,0.0002113,2]
[330989677,1719991833286,-152.16731432,0.00021199,2]
[330989678,1719991833296,-152.16731432,0.00021225,2]
[330989679,1719991833306,-150.38007137,0.00021242,2]
[330989680,1719991833315,-818.0,0.000213,4]
[330989681,1719991833325,-150.0,0.00021317,2]
[330989682,1719991833334,-215.95964997,0.00021351,2]
[330989683,1719991833344,-155.4530586,0.0002137,2]
[330989684,1719991833354,-215.95964997,0.00021401,2]
[330989685,1719991833363,-152.4646712,0.00021448,2]
[330989686,1719991833372,-153.20664271,0.00021449,2]
[330989687,1719991833381,-215.95964997,0.00021479,2]
[330989688,1719991833393,-26558.7873809,0.000215,2]
[330989689,1719991833404,-150.65467709,0.00021506,2]
[330989690,1719991833414,-155.09708436,0.00021522,2]
[330989691,1719991833425,-152.16731432,0.00021557,2]
[330989692,1719991833436,-152.16731432,0.00021567,2]
[330989693,1719991833446,-155.09708436,0.00021569,2]
[330989694,1719991833455,-155.4530586,0.00021605,2]
[330989695,1719991833465,-215.95964997,0.00021635,2]
[330989696,1719991833475,-156.51,0.00021644,2]
[330989697,1719991833484,-154.03,0.00021644,2]
[330989698,1719991833494,-152.16731432,0.00021678,2]
[330989699,1719991833503,-150.38007137,0.00021684,2]
[330989700,1719991833513,-1020.06342,0.000217,2]
[330989701,1719991833523,-151.69453534,0.00021726,2]
[330989702,1719991833533,-364.87874858,0.00021791,2]
[330989703,1719991833543,-150.38007137,0.00021791,2]
[330989704,1719991833553,-500.7,0.000218,2]
[330989705,1719991833562,-151.0,0.00021805,2]
[330989706,1719991833572,-37395.66673121,0.00021814,2]
[330989707,1719991833582,-575.28088948,0.00021817,2]
[330989708,1719991833595,-188.66683658,0.00021817,2]
[330989709,1719991833606,-198.55456855,0.00021817,2]
[330989710,1719991833616,-500.0,0.00021824,2]
[330989711,1719991833626,-200.0,0.00021824,2]
[330989712,1719991833636,-150.0,0.00021831,2]
[330989713,1719991833646,-364.87874856,0.00021859,2]
[330989714,1719991833657,-152.0,0.00021869,3]
[330989715,1719991833667,-575.28088941,0.0002187,2]
[330989716,1719991833676,-1415.12431363,0.00021882,2]
[330989717,1719991833687,-154.82210956,0.0002189,2]
[330989718,1719991833696,-155.0,0.00021898,2]
[330989719,1719991833706,-370.0,0.000219,4]
[330989720,1719991833716,-200.41764912,0.00021907,2]
[330989721,1719991833725,-150.07,0.00021907,2]
[330989722,1719991833735,-188.22778166,0.00021912,2]
[330989723,1719991833744,-195.56371829,0.00021916,2]
[330989724,1719991833755,-500.0,0.00021916,2]
[330989725,1719991833764,-500.0,0.00021916,2]
[330989726,1719991833774,-627.61670245,0.00021916,2]
[330989727,1719991833784,-280.6834284,0.00021916,2]
[330989728,1719991833795,-1000.0,0.00021916,2]
[330989729,1719991833808,-903.0,0.00021917,2]
[330989730,1719991833818,-138383.93857403,0.00021917,2]
[330989731,1719991833828,-372.76035107,0.00021917,7]
[330989732,1719991833840,-448.19047151,0.00021917,2]
[330989733,1719991833850,-1313.54,0.00021917,4]
[330989734,1719991833860,-1313.54,0.00021917,4]
[330989735,1719991833870,-1313.54,0.00021917,4]
[330989736,1719991833883,-1313.54,0.00021917,4]
[330989737,1719991833894,-1313.54,0.00021917,4]
[330989738,1719991833904,-1313.54,0.00021917,4]
[330989739,1719991833915,-1313.54,0.00021917,4]
[330989740,1719991833925,-1313.54,0.00021917,4]
[330989741,1719991833939,-1313.54,0.00021917,4]
[330989742,1719991833949,-1313.54,0.00021917,4]
[330989743,1719991833963,-1313.54,0.00021917,4]
[330989744,1719991833974,-1155.48,0.00021917,4]
[330989745,1719991833984,-1155.48,0.00021917,4]
[330989746,1719991833994,-1155.48,0.00021917,4]
[330989747,1719991834004,-1155.48,0.00021917,4]
[330989748,1719991834013,-1155.48,0.00021917,4]
[330989749,1719991834024,-1155.48,0.00021917,4]
[330989750,1719991834036,-1155.48,0.00021917,4]
[330989751,1719991834046,-1155.48,0.00021917,4]
[330989752,1719991834059,-1155.48,0.00021917,4]
[330989753,1719991834070,-1155.48,0.00021917,4]
[330989754,1719991834080,-1155.48,0.00021917,4]
[330989755,1719991834090,-748.84,0.00021917,4]
[330989756,1719991834100,-748.84,0.00021917,4]
[330989757,1719991834110,-748.84,0.00021917,4]
[330989758,1719991834120,-748.84,0.00021917,4]
[330989759,1719991834130,-748.84,0.00021917,4]
[330989760,1719991834140,-748.84,0.00021917,4]
[330989761,1719991834150,-748.84,0.00021917,4]
[330989762,1719991834163,-748.84,0.00021917,4]
[330989763,1719991834172,-748.84,0.00021917,4]
[330989764,1719991834182,-748.84,0.00021917,4]
[330989765,1719991834191,-748.84,0.00021917,4]
[330989766,1719991834201,-155.0,0.00021917,2]
[330989767,1719991834210,-550.6201206,0.00021917,2]
[330989768,1719991834220,-500.0,0.00021917,4]
[330989769,1719991834230,-500.0,0.00021917,4]
[330989770,1719991834240,-500.0,0.00021917,4]
[330989771,1719991834249,-500.0,0.00021917,4]
[330989772,1719991834259,-500.0,0.00021917,4]
[330989773,1719991834270,-500.0,0.00021917,4]
[330989774,1719991834280,-500.0,0.00021917,4]
[330989775,1719991834290,-500.0,0.00021917,4]
[330989776,1719991834301,-500.0,0.00021917,4]
[330989777,1719991834311,-500.0,0.00021917,4]
[330989778,1719991834321,-500.0,0.00021917,4]
[330989779,1719991834331,-500.0,0.00021917,4]
[330989780,1719991834340,-500.0,0.00021917,4]
[330989781,1719991834349,-500.0,0.00021917,4]
[330989782,1719991834359,-500.0,0.00021917,4]
[330989783,1719991834369,-500.0,0.00021917,4]
[330989784,1719991834380,-500.0,0.00021917,4]
[330989785,1719991834389,-500.0,0.00021917,4]
[330989786,1719991834399,-500.0,0.00021917,4]
[330989787,1719991834410,-500.0,0.00021917,4]
[330989788,1719991834422,-644.90242308,0.00021917,4]
[330989789,1719991834432,-500.0,0.00021917,4]
[330989790,1719991834442,-500.0,0.00021917,4]
[330989791,1719991834452,-500.0,0.00021917,4]
[330989792,1719991834462,-500.0,0.00021917,4]
[330989793,1719991834471,-500.0,0.00021917,4]
[330989794,1719991834484,-500.0,0.00021917,4]
[330989795,1719991834494,-500.0,0.00021917,4]
[330989796,1719991834504,-500.0,0.00021917,4]
[330989797,1719991834514,-500.0,0.00021917,4]
[330989798,1719991834523,-500.0,0.00021917,4]
[330989799,1719991834533,-500.0,0.00021917,4]
[330989800,1719991834543,-151.0,0.00021917,2]
[330989801,1719991834553,-151.0,0.00021917,2]
[330989802,1719991834563,-151.0,0.00021917,2]
[330989803,1719991834572,-151.0,0.00021917,2]
[330989804,1719991834582,-151.0,0.00021917,2]
[330989805,1719991834592,-151.00000097,0.00021917,2]
[330989806,1719991834602,-151.993889,0.00021917,2]
[330989807,1719991834611,-151.0,0.00021917,2]
[330989808,1719991834621,-151.0,0.00021917,2]
[330989809,1719991834630,-151.0,0.00021917,2]
[330989810,1719991834640,-151.0,0.00021917,2]
[330989811,1719991834650,-152.592249,0.00021917,2]
[330989812,1719991834661,-151.0,0.00021917,2]
[330989813,1719991834671,-151.0,0.00021917,2]
[330989814,1719991834681,-151.0,0.00021917,2]
[330989815,1719991834691,-152.065809,0.00021917,2]
[330989816,1719991834700,-151.0,0.00021917,2]
[330989817,1719991834710,-151.0,0.00021917,2]
[330989818,1719991834720,-151.0,0.00021917,2]
[330989819,1719991834730,-156.38871,0.00021917,2]
[330989820,1719991834739,-768.82,0.00021917,4]
[330989821,1719991834749,-768.82,0.00021917,4]
[330989822,1719991834758,-151.0,0.00021917,2]
[330989823,1719991834768,-768.82,0.00021917,4]
[330989824,1719991834778,-151.0,0.00021917,2]
[330989825,1719991834787,-151.687379,0.00021917,2]
[330989826,1719991834798,-768.82,0.00021917,4]
[330989827,1719991834810,-768.82,0.00021917,4]
[330989828,1719991834819,-768.82,0.00021917,4]
[330989829,1719991834828,-768.82,0.00021917,4]
[330989830,1719991834839,-768.82,0.00021917,4]
[330989831,1719991834848,-768.82,0.00021917,4]
[330989832,1719991834857,-768.82,0.00021917,4]
[330989833,1719991834867,-768.82,0.00021917,4]
[330989834,1719991834880,-500.0,0.00021917,4]
[330989835,1719991834891,-500.0,0.00021917,4]
[330989836,1719991834900,-500.0,0.00021917,4]
[330989837,1719991834912,-500.0,0.00021917,4]
[330989838,1719991834922,-2000.0,0.00021917,2]
[330989839,1719991834932,-200.0,0.00021917,2]
[330989840,1719991834942,-151.0,0.00021917,2]
[330989841,1719991834952,-151.0,0.00021917,2]
[330989842,1719991834962,-153.924412,0.00021917,2]
[330989843,1719991834971,-158.745065,0.00021917,2]
[330989844,1719991834981,-500.0,0.00021917,4]
[330989845,1719991834991,-500.0,0.00021917,4]
[330989846,1719991835002,-500.0,0.00021917,4]
[330989847,1719991835012,-500.0,0.00021917,4]
[330989848,1719991835022,-500.0,0.00021917,4]
[330989849,1719991835032,-500.0,0.00021917,4]
[330989850,1719991835042,-500.0,0.00021917,4]
[330989851,1719991835052,-500.0,0.00021917,4]
[330989852,1719991835061,-500.0,0.00021917,4]
[330989853,1719991835071,-500.0,0.00021917,4]
[330989854,1719991835081,-500.0,0.00021917,4]
[330989855,1719991835090,-151.0,0.00021917,2]
[330989856,1719991835100,-151.0,0.00021917,2]
[330989857,1719991835110,-151.0,0.00021917,2]
[330989858,1719991835120,-151.0,0.00021917,2]
[330989859,1719991835130,-215.50704,0.00021917,2]
[330989860,1719991835140,-500.0,0.00021917,4]
[330989861,1719991835150,-500.0,0.00021917,4]
[330989862,1719991835161,-582.59941837,0.00021917,4]
[330989863,1719991835177,-500.0,0.00021917,4]
[330989864,1719991835191,-500.0,0.00021917,4]
[330989865,1719991835201,-500.0,0.00021917,4]
[330989866,1719991835211,-500.0,0.00021917,4]
[330989867,1719991835221,-500.0,0.00021917,4]
[330989868,1719991835231,-500.0,0.00021917,4]
[330989869,1719991835240,-500.0,0.00021917,4]
[330989870,1719991835250,-500.0,0.00021917,4]
[330989871,1719991835259,-500.0,0.00021917,4]
[330989872,1719991835270,-500.0,0.00021917,4]
[330989873,1719991835280,-500.0,0.00021917,4]
[330989874,1719991835290,-151.0,0.00021917,2]
[330989875,1719991835300,-500.0,0.00021917,4]
[330989876,1719991835311,-151.0,0.00021917,2]
[330989877,1719991835321,-151.802305,0.00021917,2]
[330989878,1719991835331,-151.0,0.00021917,2]
[330989879,1719991835341,-151.0,0.00021917,2]
[330989880,1719991835351,-151.0,0.00021917,2]